fUSD/lending_fUSD_20250814
["ID","MTS","AMOUNT","RATE_DAILY","PERIOD"]
[379199715,1755185462044,-150.0,0.00027397,2]
[379199716,1755185462054,-4767.67,0.00027397,2]
[379199717,1755185462063,-2757.68,0.00027397,2]
[379199718,1755185462073,-150.0,0.00027397,2]
[379199719,1755185462084,-150.0,0.00027397,2]
[379199720,1755185462093,-400.0,0.00027397,2]
[379199721,1755185462103,-8474.45,0.00027397,2]
[379199722,1755185462114,-400.0,0.00027397,2]
[379199723,1755185462128,-500.0,0.00027397,2]
[379199724,1755185462142,-447.5,0.00027397,2]
[379199725,1755185462152,-500.0,0.00027397,2]
[379199726,1755185462161,-400.0,0.00027397,2]
[379199727,1755185462171,-400.0,0.00027397,2]
[379199728,1755185462181,-400.0,0.00027397,2]
[379199729,1755185462191,-150.0,0.00027397,2]
[379199730,1755185462200,-400.0,0.00027397,2]
[379199731,1755185462212,-500.0,0.00027397,2]
[379199732,1755185462221,-4346.13,0.00027397,2]
[379199733,1755185462231,-500.0,0.00027397,2]
[379199734,1755185462241,-500.0,0.00027397,2]
[379199735,1755185462250,-500.0,0.00027397,2]
[379199736,1755185462260,-500.0,0.00027397,2]
[379199737,1755185462270,-739.0,0.00027397,2]
[379199738,1755185462280,-500.0,0.00027397,2]
[379199739,1755185462290,-1099.63,0.00027397,2]
[379199740,1755185462300,-500.0,0.00027397,2]
[379199741,1755185462310,-500.0,0.00027397,2]
[379199742,1755185462320,-400.0,0.00027397,2]
[379199743,1755185462330,-500.0,0.00027397,2]
[379199744,1755185462339,-3796.11,0.00027397,2]
[379199745,1755185462349,-500.0,0.00027397,2]
[379199746,1755185462359,-500.0,0.00027397,2]
[379199747,1755185462371,-400.0,0.00027397,2]
[379199748,1755185462380,-478.3,0.00027397,2]
[379199749,1755185462391,-500.0,0.00027397,2]
[379199750,1755185462401,-2191.9,0.00027397,2]
[379199751,1755185462410,-500.0,0.00027397,2]
[379199752,1755185462420,-2075.87,0.00027397,2]
[379199753,1755185462429,-400.0,0.00027397,2]
[379199754,1755185462439,-500.0,0.00027397,2]
[379199755,1755185462449,-400.0,0.00027397,2]
[379199756,1755185462458,-400.0,0.00027397,2]
[379199757,1755185462467,-2124.43,0.00027397,2]
[379199758,1755185462477,-6540.61,0.00027397,2]
[379199759,1755185462487,-150.0,0.00027397,2]
[379199760,1755185462497,-17694.51,0.00027397,2]
[379199761,1755185462507,-706.4,0.00027397,2]
[379199762,1755185462516,-500.0,0.00027397,2]
[379199763,1755185462526,-5251.96,0.00027397,2]
[379199764,1755185462537,-8588.41,0.00027397,2]
[379199765,1755185462547,-2530.26,0.00027397,2]
[379199766,1755185462556,-2459.53,0.00027397,2]
[379199767,1755185462567,-2838.45,0.00027397,2]
[379199768,1755185462576,-5444.83,0.00027397,2]
[379199769,1755185462586,-1095.21,0.00027397,2]
[379199770,1755185462596,-1598.76,0.00027397,2]
[379199771,1755185462606,-400.0,0.00027397,2]
[379199772,1755185462616,-760.5,0.00027397,2]
[379199773,1755185462626,-3089.27,0.00027397,2]
[379199774,1755185462844,-2126.86,0.00027397,2]
[379199775,1755185462854,-400.0,0.00027397,2]
[379199776,1755185462864,-4945.47,0.00027397,2]
[379199777,1755185462874,-5572.39,0.00027397,2]
[379199778,1755185462884,-509.56830757,0.00027397,2]
[379199779,1755185462898,-500.0,0.00027397,2]
[379199780,1755185462909,-400.0,0.00027397,2]
[379199781,1755185462919,-6068.79,0.00027397,2]
[379199782,1755185462929,-400.0,0.00027397,2]
[379199783,1755185462939,-150.0,0.00027397,2]
[379199784,1755185462948,-6569.21,0.00027397,2]
[379199785,1755185462958,-2675.98,0.00027397,2]
[379199786,1755185462969,-500.0,0.00027397,2]
[379199787,1755185462978,-1969.6,0.00027397,2]
[379199788,1755185462988,-3738.53,0.00027397,2]
[379199789,1755185462998,-500.0,0.00027397,2]
[379199790,1755185463007,-635.64,0.00027397,2]
[379199791,1755185463017,-11584.68,0.00027397,2]
[379199792,1755185463026,-262.58351422,0.00027397,2]
[379199793,1755185463036,-1705.24,0.00027397,2]
[379199794,1755185463046,-803.12,0.00027397,2]
[379199795,1755185463056,-772.51,0.00027397,2]
[379199796,1755185463067,-3012.8,0.00027397,2]
[379199797,1755185463077,-400.0,0.00027397,2]
[379199798,1755185463087,-150.0,0.00027397,2]
[379199799,1755185463097,-798.17,0.00027397,2]
[379199800,1755185463107,-500.0,0.00027397,2]
[379199801,1755185463116,-284.4177255,0.00027397,2]
[379199802,1755185463128,-1002.32,0.00027397,2]
[379199803,1755185463141,-649.39,0.00027397,2]
[379199804,1755185463151,-2590.45,0.00027397,2]
[379199805,1755185463162,-150.0,0.00027397,2]
[379199806,1755185463172,-1282.0,0.00027397,2]
[379199807,1755185463182,-1031.6,0.00027397,2]
[379199808,1755185463200,-400.0,0.00027397,2]
[379199809,1755185463210,-2501.78,0.00027397,2]
[379199810,1755185463220,-7150.5,0.00027397,2]
[379199811,1755185463236,-541.92,0.00027397,2]
[379199812,1755185463248,-1319.92,0.00027397,2]
[379199813,1755185463259,-702.75,0.00027397,2]
[379199814,1755185463269,-11521.53,0.00027397,2]
[379199815,1755185463279,-400.0,0.00027397,2]
[379199816,1755185463290,-2639.48,0.00027397,2]
[379199817,1755185463300,-400.0,0.00027397,2]
[379199818,1755185463310,-2435.1,0.00027397,2]
[379199819,1755185463320,-9184.76,0.00027397,2]
[379199820,1755185463330,-2628.13,0.00027397,2]
[379199821,1755185463340,-500.0,0.00027397,2]
[379199822,1755185463351,-1901.99,0.00027397,2]
[379199823,1755185463362,-400.0,0.00027397,2]
[379199824,1755185463372,-400.0,0.00027397,2]
[379199825,1755185463382,-2470.8,0.00027397,2]
[379199826,1755185463394,-39354.55,0.00027397,2]
[379199827,1755185463404,-400.0,0.00027397,2]
[379199828,1755185463415,-400.0,0.00027397,2]
[379199829,1755185463425,-500.0,0.00027397,2]
[379199830,1755185463435,-944.04,0.00027397,2]
[379199831,1755185463446,-400.0,0.00027397,2]
[379199832,1755185463456,-500.0,0.00027397,2]
[379199833,1755185463467,-8381.41,0.00027397,2]
[379199834,1755185463477,-1681.82,0.00027397,2]
[379199835,1755185463487,-7406.77,0.00027397,2]
[379199836,1755185463497,-5969.73,0.00027397,2]
[379199837,1755185463507,-5296.51,0.00027397,2]
[379199838,1755185463516,-2298.66,0.00027397,2]
[379199839,1755185463526,-400.0,0.00027397,2]
[379199840,1755185463536,-400.0,0.00027397,2]
[379199841,1755185463546,-952.22,0.00027397,2]
[379199842,1755185463556,-716.29,0.00027397,2]
[379199843,1755185463566,-4115.14,0.00027397,2]
[379199844,1755185463576,-4861.41,0.00027397,2]
[379199845,1755185463586,-4629.83,0.00027397,2]
[379199846,1755185463596,-683.52,0.00027397,2]
[379199847,1755185463605,-1141.92,0.00027397,2]
[379199848,1755185463615,-400.0,0.00027397,2]
[379199849,1755185463624,-514.37,0.00027397,2]
[379199850,1755185463637,-441.74,0.00027397,2]
[379199851,1755185463646,-3410.12,0.00027397,2]
[379199852,1755185463656,-400.0,0.00027397,2]
[379199853,1755185463666,-4714.98,0.00027397,2]
[379199854,1755185463676,-400.0,0.00027397,2]
[379199855,1755185463685,-6256.65,0.00027397,2]
[379199856,1755185463695,-1290.86,0.00027397,2]
[379199857,1755185463704,-12720.06,0.00027397,2]
[379199858,1755185463714,-400.0,0.00027397,2]
[379199859,1755185463724,-5110.67,0.00027397,2]
[379199860,1755185463734,-400.0,0.00027397,2]
[379199861,1755185463744,-6007.8,0.00027397,2]
[379199862,1755185463754,-400.0,0.00027397,2]
[379199863,1755185463764,-3458.23,0.00027397,2]
[379199864,1755185463773,-400.0,0.00027397,2]
[379199865,1755185463783,-400.0,0.00027397,2]
[379199866,1755185463792,-400.0,0.00027397,2]
[379199867,1755185463802,-400.0,0.00027397,2]
[379199868,1755185463812,-3689.29,0.00027397,2]
[379199869,1755185463822,-7001.12,0.00027397,2]
[379199870,1755185463832,-716.91,0.00027397,2]
[379199871,1755185463842,-400.0,0.00027397,2]
[379199872,1755185463852,-400.0,0.00027397,2]
[379199873,1755185463862,-400.0,0.00027397,2]
[379199874,1755185463871,-400.0,0.00027397,2]
[379199875,1755185463881,-490.99530666,0.00027397,2]
[379199876,1755185463891,-1668.33,0.00027397,2]
[379199877,1755185463901,-400.0,0.00027397,2]
[379199878,1755185463911,-400.0,0.00027397,2]
[379199879,1755185463920,-400.0,0.00027397,2]
[379199880,1755185463930,-5903.76,0.00027397,2]
[379199881,1755185463940,-976.78,0.00027397,2]
[379199882,1755185463950,-400.0,0.00027397,2]
[379199883,1755185463960,-764.41,0.00027397,2]
[379199884,1755185463969,-804.23,0.00027397,2]
[379199885,1755185463979,-4616.83,0.00027397,2]
[379199886,1755185463989,-5755.46,0.00027397,2]
[379199887,1755185463999,-574.7,0.00027397,2]
[379199888,1755185464009,-400.0,0.00027397,2]
[379199889,1755185464019,-7582.06,0.00027397,2]
[379199890,1755185464028,-407.58,0.00027397,2]
[379199891,1755185464038,-400.0,0.00027397,2]
[379199892,1755185464048,-1893.17,0.00027397,2]
[379199893,1755185464058,-1859.86,0.00027397,2]
[379199894,1755185464067,-634.01,0.00027397,2]
[379199895,1755185464077,-6689.6,0.00027397,2]
[379199896,1755185464090,-6218.57,0.00027397,2]
[379199897,1755185464099,-2972.4,0.00027397,2]
[379199898,1755185464109,-400.0,0.00027397,2]
[379199899,1755185464119,-400.0,0.00027397,2]
[379199900,1755185464131,-230.83,0.00027397,2]
[379199901,1755185464143,-400.0,0.00027397,2]
[379199902,1755185464153,-546.84,0.00027397,2]
[379199903,1755185464163,-400.0,0.00027397,2]
[379199904,1755185464180,-943.55,0.00027397,2]
[379199905,1755185464190,-2397.59,0.00027397,2]
[379199906,1755185464202,-610.39,0.00027397,2]
[379199907,1755185464213,-7967.93,0.00027397,2]
[379199908,1755185464224,-891.65,0.00027397,2]
[379199909,1755185464234,-16030.0,0.00027397,2]
[379199910,1755185464244,-2447.93,0.00027397,2]
[379199911,1755185464255,-400.0,0.00027397,2]
[379199912,1755185464264,-3948.42,0.00027397,2]
[379199913,1755185464275,-400.0,0.00027397,2]
[379199914,1755185464285,-2259.68,0.00027397,2]
[379199915,1755185464296,-7694.47,0.00027397,2]
[379199916,1755185464307,-448.36,0.00027397,2]
[379199917,1755185464318,-400.0,0.00027397,2]
[379199918,1755185464328,-2448.57,0.00027397,2]
[379199919,1755185464339,-400.0,0.00027397,2]
[379199920,1755185464349,-400.0,0.00027397,2]
[379199921,1755185464359,-820.41,0.00027397,2]
[379199922,1755185464369,-10134.15,0.00027397,2]
[379199923,1755185464380,-5823.46,0.00027397,2]
[379199924,1755185464392,-11287.08,0.00027397,2]
[379199925,1755185464402,-400.0,0.00027397,2]
[379199926,1755185464412,-833.81,0.00027397,2]
[379199927,1755185464422,-4404.54,0.00027397,2]
[379199928,1755185464432,-400.0,0.00027397,2]
[379199929,1755185464443,-2799.25,0.00027397,2]
[379199930,1755185464453,-400.0,0.00027397,2]
[379199931,1755185464463,-738.59,0.00027397,2]
[379199932,1755185464473,-400.0,0.00027397,2]
[379199933,1755185464484,-738.59,0.00027397,2]
[379199934,1755185464494,-6766.18,0.00027397,2]
[379199935,1755185464506,-738.59,0.00027397,2]
[379199936,1755185464516,-11943.33,0.00027397,2]
[379199937,1755185464526,-6257.67,0.00027397,2]
[379199938,1755185464536,-1030.78,0.00027397,2]
[379199939,1755185464545,-738.59,0.00027397,2]
[379199940,1755185464556,-738.59,0.00027397,2]
[379199941,1755185464566,-9727.26,0.00027397,2]
[379199942,1755185464576,-738.59,0.00027397,2]
[379199943,1755185464586,-738.59,0.00027397,2]
[379199944,1755185464596,-400.0,0.00027397,2]
[379199945,1755185464606,-738.59,0.00027397,2]
[379199946,1755185464616,-528.98,0.00027397,2]
[379199947,1755185464625,-400.0,0.00027397,2]
[379199948,1755185464635,-738.59,0.00027397,2]
[379199949,1755185464647,-2546.41,0.00027397,2]
[379199950,1755185464657,-500.0,0.00027397,2]
[379199951,1755185464667,-738.59,0.00027397,2]
[379199952,1755185465021,-738.59,0.00027397,2]
[379199953,1755185465049,-500.0,0.00027397,2]
[379199954,1755185465059,-738.59,0.00027397,2]
[379199955,1755185465071,-500.0,0.00027397,2]
[379199956,1755185465082,-500.0,0.00027397,2]
[379199957,1755185465092,-738.59,0.00027397,2]
[379199958,1755185465102,-500.0,0.00027397,2]
[379199959,1755185465112,-738.59,0.00027397,2]
[379199960,1755185465123,-658.73,0.00027397,2]
[379199961,1755185465141,-500.0,0.00027397,2]
[379199962,1755185465151,-738.59,0.00027397,2]
[379199963,1755185465162,-500.0,0.00027397,2]
[379199964,1755185465174,-400.0,0.00027397,2]
[379199965,1755185465184,-500.0,0.00027397,2]
[379199966,1755185465194,-500.0,0.00027397,2]
[379199967,1755185465205,-400.0,0.00027397,2]
[379199968,1755185465215,-3468.07,0.00027397,2]
[379199969,1755185465225,-6181.13,0.00027397,2]
[379199970,1755185465235,-5787.92,0.00027397,2]
[379199971,1755185465245,-5614.51,0.00027397,2]
[379199972,1755185465255,-542.39,0.00027397,2]
[379199973,1755185465264,-400.0,0.00027397,2]
[379199974,1755185465274,-400.0,0.00027397,2]
[379199975,1755185465284,-400.0,0.00027397,2]
[379199976,1755185465295,-844.55,0.00027397,2]
[379199977,1755185465305,-810.94,0.00027397,2]
[379199978,1755185465315,-4694.06,0.00027397,2]
[379199979,1755185465325,-400.0,0.00027397,2]
[379199980,1755185465335,-504.78118852,0.00027397,2]
[379199981,1755185465345,-3409.43,0.00027397,2]
[379199982,1755185465355,-13993.43,0.00027397,2]
[379199983,1755185465364,-3104.05,0.00027397,2]
[379199984,1755185465374,-8132.34,0.00027397,2]
[379199985,1755185465384,-402.28737314,0.00027397,2]
[379199986,1755185465396,-400.0,0.00027397,2]
[379199987,1755185465407,-459.49,0.00027397,2]
[379199988,1755185465416,-400.0,0.00027397,2]
[379199989,1755185465428,-268.43222543,0.00027397,2]
[379199990,1755185465438,-400.0,0.00027397,2]
[379199991,1755185465449,-400.0,0.00027397,2]
[379199992,1755185465459,-400.0,0.00027397,2]
[379199993,1755185465468,-1680.1,0.00027397,2]
[379199994,1755185465478,-1269.76,0.00027397,2]
[379199995,1755185465487,-639.64,0.00027397,2]
[379199996,1755185465497,-400.0,0.00027397,2]
[379199997,1755185465507,-3086.39,0.00027397,2]
[379199998,1755185465518,-400.0,0.00027397,2]
[379199999,1755185465530,-8818.84,0.00027397,2]
[379200000,1755185465540,-7132.25,0.00027397,2]
[379200001,1755185465549,-897.68,0.00027397,2]
[379200002,1755185465559,-982.43,0.00027397,2]
[379200003,1755185465569,-400.0,0.00027397,2]
[379200004,1755185465578,-400.0,0.00027397,2]
[379200005,1755185465588,-400.0,0.00027397,2]
[379200006,1755185465597,-1884.09,0.00027397,2]
[379200007,1755185465607,-3580.54,0.00027397,2]
[379200008,1755185465616,-1042.17,0.00027397,2]
[379200009,1755185465626,-158.31371085,0.00027397,2]
[379200010,1755185465635,-518.91,0.00027397,2]
[379200011,1755185465646,-5103.32,0.00027397,2]
[379200012,1755185465656,-2831.0,0.00027397,2]
[379200013,1755185465666,-400.0,0.00027397,2]
[379200014,1755185465676,-400.0,0.00027397,2]
[379200015,1755185465685,-400.0,0.00027397,2]
[379200016,1755185465695,-3527.71,0.00027397,2]
[379200017,1755185465704,-7148.91,0.00027397,2]
[379200018,1755185465713,-1027.01,0.00027397,2]
[379200019,1755185465723,-400.0,0.00027397,2]
[379200020,1755185465732,-400.0,0.00027397,2]
[379200021,1755185465742,-558.79,0.00027397,2]
[379200022,1755185465752,-400.0,0.00027397,2]
[379200023,1755185465761,-1908.65,0.00027397,2]
[379200024,1755185465771,-400.0,0.00027397,2]
[379200025,1755185465781,-2836.21,0.00027397,2]
[379200026,1755185465791,-713.37,0.00027397,2]
[379200027,1755185465800,-1971.5,0.00027397,2]
[379200028,1755185465810,-400.0,0.00027397,2]
[379200029,1755185465819,-602.0,0.00027397,2]
[379200030,1755185465829,-861.1,0.00027397,2]
[379200031,1755185465838,-1435.4,0.00027397,2]
[379200032,1755185465848,-1338.03,0.00027397,2]
[379200033,1755185465857,-400.0,0.00027397,2]
[379200034,1755185465867,-400.0,0.00027397,2]
[379200035,1755185465877,-1734.04,0.00027397,2]
[379200036,1755185465886,-1191.19,0.00027397,2]
[379200037,1755185465898,-2988.47,0.00027397,2]
[379200038,1755185465908,-400.0,0.00027397,2]
[379200039,1755185465918,-401.62567205,0.00027397,2]
[379200040,1755185465928,-5221.68,0.00027397,2]
[379200041,1755185465938,-400.0,0.00027397,2]
[379200042,1755185465948,-402.80703351,0.00027397,2]
[379200043,1755185465957,-4310.23,0.00027397,2]
[379200044,1755185465967,-400.0,0.00027397,2]
[379200045,1755185465976,-863.7,0.00027397,2]
[379200046,1755185465986,-400.0,0.00027397,2]
[379200047,1755185465995,-400.0,0.00027397,2]
[379200048,1755185466004,-400.0,0.00027397,2]
[379200049,1755185466013,-505.97574834,0.00027397,2]
[379200050,1755185466022,-949.69,0.00027397,2]
[379200051,1755185466031,-415.5,0.00027397,2]
[379200052,1755185466041,-1405.04,0.00027397,2]
[379200053,1755185466051,-740.35,0.00027397,2]
[379200054,1755185466060,-400.0,0.00027397,2]
[379200055,1755185466070,-549.24,0.00027397,2]
[379200056,1755185466080,-989.51,0.00027397,2]
[379200057,1755185466089,-6493.53,0.00027397,2]
[379200058,1755185466099,-400.0,0.00027397,2]
[379200059,1755185466109,-400.0,0.00027397,2]
[379200060,1755185466118,-651.45,0.00027397,2]
[379200061,1755185466131,-719.6,0.00027397,2]
[379200062,1755185466143,-8907.58,0.00027397,2]
[379200063,1755185466153,-719.6,0.00027397,2]
[379200064,1755185466163,-719.6,0.00027397,2]
[379200065,1755185466174,-719.6,0.00027397,2]
[379200066,1755185466184,-719.6,0.00027397,2]
[379200067,1755185466194,-890.66,0.00027397,2]
[379200068,1755185466207,-719.6,0.00027397,2]
[379200069,1755185466221,-400.0,0.00027397,2]
[379200070,1755185466231,-400.0,0.00027397,2]
[379200071,1755185466241,-719.6,0.00027397,2]
[379200072,1755185466251,-388.34556768,0.00027397,2]
[379200073,1755185466260,-719.6,0.00027397,2]
[379200074,1755185466270,-3080.56,0.00027397,2]
[379200075,1755185466280,-889.56,0.00027397,2]
[379200076,1755185466290,-719.6,0.00027397,2]
[379200077,1755185466299,-719.6,0.00027397,2]
[379200078,1755185466309,-435.86,0.00027397,2]
[379200079,1755185466319,-719.6,0.00027397,2]
[379200080,1755185466328,-719.6,0.00027397,2]
[379200081,1755185466338,-719.6,0.00027397,2]
[379200082,1755185466347,-719.6,0.00027397,2]
[379200083,1755185466357,-400.0,0.00027397,2]
[379200084,1755185466366,-400.0,0.00027397,2]
[379200085,1755185466376,-3155.29,0.00027397,2]
[379200086,1755185466386,-1232.66,0.00027397,2]
[379200087,1755185466397,-2361.03,0.00027397,2]
[379200088,1755185466407,-11996.04,0.00027397,2]
[379200089,1755185466416,-5439.79,0.00027397,2]
[379200090,1755185466426,-1878.85,0.00027397,2]
[379200091,1755185466435,-6402.09,0.00027397,2]
[379200092,1755185466445,-365.25633335,0.00027397,2]
[379200093,1755185466455,-5293.55,0.00027397,2]
[379200094,1755185466465,-400.0,0.00027397,2]
[379200095,1755185466475,-3134.58,0.00027397,2]
[379200096,1755185466484,-2847.242473,0.00027397,2]
[379200097,1755185466494,-6179.35,0.00027397,2]
[379200098,1755185466503,-4246.962703,0.00027397,2]
[379200099,1755185466512,-400.0,0.00027397,2]
[379200100,1755185466522,-2219.06,0.00027397,2]
[379200101,1755185466531,-3584.76,0.00027397,2]
[379200102,1755185466540,-400.0,0.00027397,2]
[379200103,1755185466550,-400.0,0.00027397,2]
[379200104,1755185466560,-1376.19,0.00027397,2]
[379200105,1755185466569,-591.06,0.00027397,2]
[379200106,1755185466579,-11317.12,0.00027397,2]
[379200107,1755185466588,-400.0,0.00027397,2]
[379200108,1755185466598,-853.01,0.00027397,2]
[379200109,1755185466607,-845.77,0.00027397,2]
[379200110,1755185466617,-530.0,0.00027397,2]
[379200111,1755185466626,-15041.54,0.00027397,2]
[379200112,1755185466648,-400.0,0.00027397,2]
[379200113,1755185466659,-3604.68,0.00027397,2]
[379200114,1755185466670,-5380.49,0.00027397,2]
[379200115,1755185466680,-400.0,0.00027397,2]
[379200116,1755185466691,-6299.18,0.00027397,2]
[379200117,1755185466701,-19142.75,0.00027397,2]
[379200118,1755185466711,-400.0,0.00027397,2]
[379200119,1755185466722,-155.880053,0.00027397,7]
[379200120,1755185466732,-506.48,0.00027397,2]
[379200121,1755185466741,-151.0,0.00027397,7]
[379200122,1755185466752,-151.0,0.00027397,7]
[379200123,1755185466763,-151.0,0.00027397,7]
[379200124,1755185466773,-1000.0,0.00027397,7]
[379200125,1755185466783,-1000.0,0.00027397,7]
[379200126,1755185466793,-1000.0,0.00027397,7]
[379200127,1755185466803,-1000.0,0.00027397,7]
[379200128,1755185466813,-718.0,0.00027397,7]
[379200129,1755185466823,-151.0,0.00027397,7]
[379200130,1755185466833,-151.0,0.00027397,7]
[379200131,1755185466843,-1000.0,0.00027397,7]
[379200132,1755185466853,-1000.0,0.00027397,7]
[379200133,1755185466863,-1000.0,0.00027397,7]
[379200134,1755185466872,-1000.0,0.00027397,7]
[379200135,1755185466882,-1000.0,0.00027397,7]
[379200136,1755185466893,-551.14,0.00027397,80]
[379200137,1755185466903,-463.96,0.00027397,2]
[379200138,1755185466912,-300.0,0.00027397,2]
[379200139,1755185466922,-1000.0,0.00027397,7]
[379200140,1755185466932,-1000.0,0.00027397,7]
[379200141,1755185466942,-1000.0,0.00027397,7]
[379200142,1755185466952,-1000.0,0.00027397,7]
[379200143,1755185466962,-150.0,0.00027397,5]
[379200144,1755185466972,-237.212332,0.000274,7]
[379200145,1755185466982,-237.212332,0.000274,7]
[379200146,1755185466992,-1000.0,0.000274,2]
[379200147,1755185467002,-185.45430278,0.000274,2]
[379200148,1755185467012,-1000.0,0.000274,2]
[379200149,1755185467022,-1000.0,0.000274,2]
[379200150,1755185467032,-185.45430273,0.000274,2]
[379200151,1755185467043,-185.45430273,0.000274,2]
[379200152,1755185467052,-185.45430273,0.000274,2]
[379200153,1755185467062,-185.45430273,0.000274,2]
[379200154,1755185467072,-185.45430273,0.000274,2]
[379200155,1755185467082,-1000.0,0.000274,2]
[379200156,1755185467092,-1000.0,0.000274,2]
[379200157,1755185467102,-185.45430273,0.000274,2]
[379200158,1755185467112,-185.45430273,0.000274,2]
[379200159,1755185467122,-185.45430273,0.000274,2]
[379200160,1755185467135,-185.45430273,0.000274,2]
[379200161,1755185467146,-4363.24311273,0.00027407,2]
[379200162,1755185467156,-224.41056542,0.00027409,2]
[379200163,1755185467167,-1185.4374654,0.00027409,2]
[379200164,1755185467177,-587.6290157,0.00027415,2]
[379200165,1755185467187,-6424.68238394,0.00027422,2]
[379200166,1755185467196,-5000.0,0.00027422,2]
[379200167,1755185467207,-5000.0,0.00027422,2]
[379200168,1755185467217,-5000.0,0.00027422,2]
[379200169,1755185467228,-5000.0,0.00027422,2]
[379200170,1755185467238,-173.18,0.00027433,2]
[379200171,1755185467247,-246.09519603,0.00027433,2]
[379200172,1755185467257,-2506.2642563,0.00027434,2]
[379200173,1755185467267,-587.6290157,0.00027434,2]
[379200174,1755185467277,-250.8563759,0.00027434,2]
[379200175,1755185467287,-3111.0,0.00027439,2]
[379200176,1755185467297,-165.55,0.00027449,2]
[379200177,1755185467307,-4363.24311273,0.00027461,2]
[379200178,1755185467317,-167.22,0.00027499,2]
[379200179,1755185467327,-1000.0,0.000275,2]
[379200180,1755185467337,-1000.0,0.000275,2]
[379200181,1755185467347,-1000.0,0.000275,2]
[379200182,1755185467356,-1000.0,0.000275,2]
[379200183,1755185467366,-1000.0,0.000275,2]
[379200184,1755185467376,-1506.0,0.000275,2]
[379200185,1755185467386,-1000.0,0.000275,2]
[379200186,1755185467398,-504.07993218,0.000275,12]
[379200187,1755185467408,-205.38,0.00027503,2]
[379200188,1755185467418,-174.05,0.00027509,2]
[379200189,1755185467428,-151.0,0.0002751,3]
[379200190,1755185467437,-151.0,0.0002751,3]
[379200191,1755185467447,-151.0,0.0002751,3]
[379200192,1755185467457,-151.0,0.0002751,3]
[379200193,1755185467466,-1217.0,0.0002751,3]
[379200194,1755185467476,-1217.0,0.0002751,3]
[379200195,1755185467485,-1217.0,0.0002751,3]
[379200196,1755185467496,-1217.0,0.0002751,3]
[379200197,1755185467505,-1217.0,0.0002751,3]
[379200198,1755185467515,-1217.0,0.0002751,3]
[379200199,1755185467526,-1217.0,0.0002751,3]
[379200200,1755185467535,-1217.0,0.0002751,3]
[379200201,1755185467545,-764.34977557,0.0002751,3]
[379200202,1755185467555,-160.0,0.0002751,3]
[379200203,1755185467565,-211.86673127,0.0002751,3]
[379200204,1755185467575,-458.13769775,0.0002751,3]
[379200205,1755185467586,-4363.24311273,0.00027516,2]
[379200206,1755185467595,-151.0,0.00027521,7]
[379200207,1755185467605,-151.0,0.00027521,7]
[379200208,1755185467760,-260.291872,0.00027522,7]
[379200209,1755185467770,-323.847299,0.00027522,7]
[379200210,1755185467780,-151.459829,0.00027522,7]
[379200211,1755185467789,-323.847299,0.00027522,7]
[379200212,1755185467799,-151.0,0.00027522,7]
[379200213,1755185467808,-151.0,0.00027522,7]
[379200214,1755185467818,-151.0,0.00027522,7]